bitfinex/quotes_ETHUSD_20251201
["timestamp","ask_amount","ask_price","bid_price","bid_amount"]
[1764603759827,1.01592,2728.1,2725.8,0.652]
[1764603759965,0.652,2728.1,2726.8,2.22579339]
[1764603760164,1.20151044,2729.4,2726.8,2.22579339]
[1764603760165,0.652,2729.0,2726.9,0.4975]
[1764603760516,1.13109811,2728.8,2726.9,0.4975]
[1764603760717,0.72559411,2728.5,2726.8,2.22579339]
[1764603760866,0.0997041,2728.1,2726.8,2.22579339]
[1764603761064,0.36392,2728.3,2726.8,2.22579339]
[1764603761267,0.72559411,2728.8,2726.8,2.22579339]
[1764603761268,0.72559411,2728.8,2726.9,0.4975]
[1764603761466,0.6867,2729.7,2727.0,9.61341094]
[1764603761698,17.6269484,2729.7,2727.1,0.653]
[1764603761867,0.36392,2729.2,2727.1,0.653]
[1764603762066,0.36392,2729.3,2727.2,0.6959]
[1764603762293,0.652,2729.8,2727.4,1.13109811]
[1764603762506,4.15509289,2729.8,2727.5,1.1505]
[1764603762815,0.4918,2730.3,2727.6,10.51641494]
[1764603762988,0.73019342,2730.2,2727.8,0.405504]
[1764603763189,0.72559411,2730.2,2727.7,1.61444149]
[1764603763500,0.6867,2731.4,2728.2,0.405504]
[1764603763715,9.61341094,2730.9,2728.4,0.405504]
[1764603764022,0.4918,2731.3,2728.3,0.4975]
[1764603764023,9.61341094,2731.1,2728.3,0.4975]
[1764603764227,9.61341094,2731.1,2728.4,0.4975]
[1764603764523,18.50053582,2731.4,2728.4,4.16265173]
[1764603764524,9.61341094,2730.6,2728.4,4.16265173]
[1764603764723,9.61341094,2730.6,2728.5,0.41626517]
[1764603764724,0.36392,2730.5,2728.5,0.41626517]
[1764603764949,0.4918,2731.0,2728.6,0.405504]
[1764603765233,4.86117683,2732.5,2728.6,0.405504]
[1764603765234,4.15235465,2731.9,2729.1,1.13109811]
[1764603765413,4.51627465,2731.9,2729.1,1.13109811]
[1764603765582,4.15235465,2731.9,2729.3,0.405504]
[1764603765786,0.36392,2731.0,2729.2,1.1505]
[1764603766041,0.36392,2731.2,2729.2,1.1505]
[1764603766241,0.36392,2731.2,2728.6,0.603904]
[1764603766242,4.488291,2731.4,2729.3,0.4975]
[1764603766421,0.4918,2731.7,2729.5,1.13109811]
[1764603766607,1.10462746,2731.8,2729.6,0.4975]
[1764603766934,4.7652285,2731.8,2729.7,0.653]
[1764603767224,4.31360104,2731.8,2729.6,0.4975]
[1764603767391,0.653,2731.8,2729.8,0.653]
[1764603767595,7.51343335,2732.8,2730.4,0.405504]
[1764603767785,4.2180875,2732.8,2730.5,1.65489149]
[1764603767985,1.21739411,2732.7,2730.6,0.4975]
[1764603768210,0.36392,2732.5,2730.7,0.653]
[1764603768488,0.083,2733.0,2730.8,11.48329168]
[1764603768489,3.74207341,2733.0,2730.8,11.48329168]
[1764603768716,3.74207341,2733.0,2730.9,1.86662917]
[1764603768717,0.90239934,2732.9,2730.9,1.86662917]
[1764603769024,1.62799345,2732.9,2730.9,1.71112917]
[1764603769321,0.1941,2733.6,2731.2,9.61341094]
[1764603769520,0.099053,2732.4,2731.2,9.61341094]
[1764603769821,0.099053,2732.4,2730.9,1.21362917]
[1764603769822,0.099053,2732.4,2731.3,0.4975]
[1764603770027,0.099053,2732.4,2731.4,0.405504]
[1764603770238,0.099053,2732.4,2731.4,1.07047989]
[1764603770439,0.099053,2732.4,2731.5,14.64396848]
[1764603770719,0.099053,2732.4,2731.5,10.98297636]
[1764603770882,0.099053,2732.4,2731.2,0.36444428]
[1764603771108,0.1949,2734.1,2731.8,0.405504]
[1764603771109,3.65774824,2734.0,2731.8,0.405504]
[1764603771306,3.65774824,2734.0,2731.7,9.61341094]
[1764603771307,0.38526482,2733.9,2732.0,0.405504]
[1764603771506,0.38619457,2734.5,2732.0,0.405504]
[1764603771744,9.61341094,2733.4,2732.1,0.33678639]
[1764603771943,9.61341094,2733.4,2729.6,0.1984]
[1764603771944,3.510568,2732.1,2729.6,0.1984]
[1764603772105,3.510568,2732.1,2726.8,4.04861904]
[1764603772106,1.37254253,2732.0,2729.3,0.4975]
[1764603772306,1.37254253,2732.0,2726.8,2.22579339]
[1764603772307,0.405504,2730.9,2727.8,0.19149073]
[1764603772648,0.405504,2730.9,2726.8,2.22579339]
[1764603772649,9.61341094,2730.6,2728.0,0.1984]
[1764603772939,0.71854253,2730.9,2727.0,0.6959]
[1764603772940,9.71311504,2729.2,2727.0,0.6959]
[1764603773128,10.33900505,2730.1,2727.3,0.4975]
[1764603773306,0.36392,2729.7,2727.3,10.11091094]
[1764603773654,0.36392,2729.5,2727.4,0.4975]
[1764603773866,0.72559411,2729.7,2727.5,0.657]
[1764603773867,0.36392,2729.3,2727.5,0.657]
[1764603774046,0.36392,2729.3,2727.6,0.4975]
[1764603774345,0.1949,2729.5,2727.7,0.658]
[1764603774560,0.1949,2729.5,2727.8,0.658]
[1764603774561,0.72559411,2729.2,2727.8,0.658]
[1764603774738,0.4918,2729.6,2727.6,11.49618013]
[1764603774908,0.4918,2729.6,2727.7,0.4975]
[1764603774909,0.72559411,2729.5,2727.7,0.4975]
[1764603775109,0.72559411,2729.1,2727.2,0.1984]
[1764603775315,0.72559411,2729.1,2727.3,1.1555]
[1764603775316,0.72559411,2729.0,2727.3,1.1555]
[1764603775543,1.08951411,2729.0,2727.3,0.4975]
[1764603775741,0.4918,2729.4,2727.4,1.1555]
[1764603776045,9.61341094,2729.1,2727.5,0.658]
[1764603776242,0.72559411,2729.0,2727.5,1.1555]
[1764603776441,0.72559411,2729.3,2727.6,0.4975]
[1764603776631,0.4918,2729.2,2727.6,4.16372671]
[1764603776814,0.4918,2729.2,2727.7,0.658]
[1764603777015,0.4918,2729.2,2727.2,0.1984]
[1764603777016,0.72559411,2728.9,2727.2,0.1984]
[1764603777346,0.4918,2729.2,2727.3,1.1555]
[1764603777650,10.46631094,2729.5,2727.4,2.02424289]
[1764603777651,13.47202189,2729.5,2727.4,2.02424289]
[1764603777811,4.88090611,2729.7,2727.5,0.405504]
[1764603778014,4.88090611,2729.7,2727.7,0.405504]
[1764603778015,1.21739411,2729.7,2727.7,0.405504]
[1764603778211,0.90113283,2730.6,2727.9,9.61341094]
[1764603778464,0.72371836,2730.6,2728.1,1.13109811]
[1764603778615,3.66128746,2731.3,2728.7,0.405504]
[1764603778944,3.66128746,2731.3,2728.9,0.405504]
[1764603778945,0.4918,2731.2,2728.9,0.405504]
[1764603779111,9.61341094,2730.8,2729.0,0.658]
[1764603779316,9.61341094,2730.8,2728.4,0.405504]
[1764603779317,9.61341094,2730.3,2728.5,0.658]
[1764603779621,1.13109811,2728.7,2725.5,0.0783]
[1764603779924,1.20151044,2729.5,2725.5,0.0783]
[1764603779925,0.72559411,2728.0,2725.5,0.0783]
[1764603780138,0.72559411,2728.0,2725.9,3.66847577]
[1764603780139,1.08951411,2727.7,2725.9,3.66847577]
[1764603780452,0.72559411,2727.5,2725.9,0.659]
[1764603780658,0.72559411,2727.5,2725.5,0.0783]
[1764603780876,3.84689812,2728.1,2725.5,0.0783]
[1764603780877,0.18126344,2728.1,2725.5,0.7373]
[1764603781152,0.72311969,2728.2,2726.5,0.66]
[1764603781358,1.20909411,2728.1,2725.5,0.0783]
[1764603781525,0.36392,2728.0,2726.3,0.66]
[1764603781725,0.36392,2728.0,2726.0,0.1761]
[1764603781726,0.57505709,2727.9,2726.0,0.1761]
[1764603781924,0.57505709,2727.9,2725.5,0.0783]
[1764603781925,0.90113283,2727.4,2725.5,0.0783]
[1764603782125,1.20909411,2727.8,2726.2,0.66]
[1764603782380,1.20909411,2727.8,2725.9,0.1761]
[1764603782381,0.72559411,2727.5,2725.9,0.1761]
[1764603782518,1.44750758,2727.5,2725.9,0.1761]
[1764603782716,0.36392,2727.6,2725.9,0.1761]
[1764603782916,0.36392,2727.6,2725.5,0.0783]
[1764603782917,0.57505709,2727.9,2726.4,0.1761]
[1764603783157,0.72559411,2727.8,2726.4,0.1761]
[1764603783322,0.72559411,2727.8,2726.7,0.66]
[1764603783517,1.08951411,2727.8,2726.4,0.1761]
[1764603783718,1.08951411,2727.8,2725.6,0.405504]
[1764603783719,4.24092093,2727.9,2726.1,0.1761]
[1764603783969,0.57505709,2727.9,2726.5,0.1761]
[1764603784133,0.57505709,2727.9,2726.8,2.44837273]
[1764603784314,3.66649556,2727.4,2726.8,2.22579339]
[1764603784517,7.33230253,2727.7,2726.8,2.22579339]
[1764603784714,0.90113283,2728.6,2726.9,0.1761]
[1764603784948,3.66477379,2728.7,2726.9,0.39867934]
[1764603785149,11.48999445,2727.6,2726.8,2.22579339]
[1764603785348,0.54942,2726.9,2726.8,2.22579339]
[1764603785549,5.43140711,2726.9,2724.9,0.1761]
[1764603785749,0.36392,2726.4,2724.9,0.1761]
[1764603786046,2.33639718,2726.8,2725.1,1.65467551]
[1764603786047,11.48999445,2726.1,2725.1,1.65467551]
[1764603786251,11.48999445,2725.5,2725.1,1.65467551]
[1764603786438,8.06396645,2725.4,2725.1,1.65467551]
[1764603786776,0.72559411,2725.3,2725.1,1.65467551]
[1764603787056,0.91619411,2725.3,2722.9,0.12812686]
[1764603787259,0.72559411,2724.8,2723.4,0.1838]
[1764603787459,0.72559411,2725.2,2723.8,0.46]
[1764603788152,11.48999445,2724.4,2723.5,2.32713499]
[1764603788358,11.48999445,2724.6,2723.5,2.32713499]
[1764603788526,3.6697264,2725.0,2723.6,1.125]
[1764603788849,3.6697264,2725.0,2723.5,2.32713499]
[1764603788850,0.72559411,2724.9,2723.5,2.32713499]
[1764603789153,0.72559411,2724.5,2723.5,2.32713499]
[1764603789452,7.8229528,2725.0,2723.5,2.32713499]
[1764603789453,11.48999445,2724.3,2723.5,2.32713499]
[1764603789618,0.665,2725.1,2723.5,2.32713499]
[1764603789818,0.1906,2725.3,2723.6,0.46]
[1764603790053,0.1906,2725.3,2723.7,0.405504]
[1764603790349,0.1906,2725.3,2723.9,7.34241344]
[1764603790550,0.1906,2725.3,2724.0,1.24024134]
[1764603790748,0.1906,2725.3,2724.1,0.667]
[1764603791051,0.1906,2725.3,2724.2,0.667]
[1764603791216,0.1906,2725.3,2724.3,1.127]
[1764603791526,0.1906,2725.3,2724.4,0.667]
[1764603791717,0.1906,2725.3,2724.4,0.46]
[1764603791921,0.1906,2725.3,2724.5,0.46]
[1764603792239,0.1898,2725.3,2724.6,0.667]
[1764603792447,3.66838624,2726.0,2724.6,3.6701655]
[1764603792631,0.72559411,2725.9,2724.5,0.46]
[1764603792837,0.72559411,2725.5,2724.1,0.1738]
[1764603793359,0.4835,2725.8,2724.2,0.46]
[1764603793360,0.72559411,2725.7,2724.2,0.46]
[1764603793859,0.002,2726.6,2724.3,0.667]
[1764603794026,0.002,2726.6,2724.2,0.46]
[1764603794027,2.079091,2726.5,2724.2,0.46]
[1764603794218,0.72559411,2726.1,2724.2,0.46]
[1764603794425,4.39396498,2726.1,2724.4,7.34106592]
[1764603794626,4.39396498,2726.1,2724.2,4.79780243]
[1764603794627,0.4835,2726.0,2724.2,4.79780243]
[1764603795041,0.4835,2726.0,2724.2,0.46]
[1764603795321,0.72559411,2725.9,2724.3,1.127]
[1764603795524,0.72559411,2725.9,2724.4,0.84685879]
[1764603795852,0.72559411,2725.9,2724.4,1.30685879]
[1764603796039,1.08951411,2725.9,2724.5,0.667]
[1764603796222,1.08951411,2725.9,2724.4,0.46]
[1764603796424,0.4835,2725.8,2724.5,0.667]
[1764603796626,1.1505,2726.3,2724.6,1.127]
[1764603796826,1.1505,2726.3,2724.1,11.01281157]
[1764603796827,11.48999445,2726.0,2724.1,0.46]
[1764603797135,11.48999445,2726.0,2724.2,0.46]
[1764603797136,0.72559411,2725.9,2724.2,0.46]
[1764603797335,0.72559411,2725.9,2724.3,0.667]
[1764603797545,0.4835,2726.0,2724.2,0.46]
[1764603799832,0.72559411,2725.8,2724.5,0.1555]
[1764603800256,0.72559411,2725.8,2724.5,0.8215]
[1764603800428,7.33756466,2725.7,2724.5,0.8215]
[1764603800743,7.33756466,2725.7,2723.6,3.6716111]
[1764603800744,1.08951411,2725.6,2723.6,3.6716111]
[1764603800944,1.20909411,2725.6,2723.7,0.46]
[1764603801325,0.72559411,2725.1,2723.5,2.32813499]
[1764603801564,0.36392,2724.5,2723.5,2.32813499]
[1764603801726,1.75451411,2724.6,2723.5,2.32813499]
[1764603801926,0.36392,2724.1,2723.5,2.32813499]
[1764603802150,11.48999445,2725.0,2723.5,2.32813499]
[1764603802377,0.72559411,2724.9,2723.6,0.665]
[1764603802660,4.33419911,2725.4,2723.7,0.665]
[1764603802863,4.33422246,2725.4,2723.8,0.84681877]
[1764603803074,0.665,2725.4,2723.8,0.84681877]
[1764603803228,0.665,2725.4,2723.9,0.46]
[1764603803428,0.665,2725.4,2723.9,1.125]
[1764603803650,3.66900817,2725.6,2723.9,1.125]
[1764603803850,1.20909411,2725.6,2724.0,0.86218188]
[1764603804131,0.36392,2725.3,2724.0,0.19718188]
[1764603804431,3.6693208,2725.3,2724.1,7.34187438]
[1764603804629,0.72559411,2725.5,2724.2,1.28040563]
[1764603804962,3.66837857,2726.0,2724.2,1.94540563]
[1764603805160,3.66837857,2726.0,2724.3,1.388728]
[1764603805161,0.38538786,2725.9,2724.3,1.388728]
[1764603805363,0.38538786,2725.9,2723.7,3.67146068]
[1764603805364,0.72420862,2725.9,2723.6,30.0]
[1764603805564,0.4835,2725.9,2723.7,0.665]
[1764603805871,0.4835,2725.9,2723.7,0.46]
[1764603805872,0.72559411,2725.3,2723.7,0.46]
[1764603806032,0.4835,2725.2,2723.5,2.32813499]
[1764603806344,0.36392,2724.9,2723.5,6.66484531]
[1764603806544,1.38463283,2725.2,2723.5,6.66484531]
[1764603806545,0.72559411,2724.7,2723.6,0.66648453]
[1764603806745,0.72559411,2724.7,2723.5,5.99979076]
[1764603806746,0.72559411,2724.7,2723.5,2.32813499]
[1764603807364,1.45002761,2724.7,2723.5,2.32813499]
[1764603807562,0.72559411,2725.0,2723.6,0.46]
[1764603807738,0.72559411,2725.1,2723.7,1.74751186]
[1764603808053,0.72559411,2725.1,2723.8,1.125]
[1764603808256,1.45161333,2725.1,2723.9,0.665]
[1764603808458,0.72601922,2725.1,2724.1,7.34187438]
[1764603808671,1.45161333,2725.4,2724.2,1.39818744]
[1764603809260,0.90113283,2725.3,2724.2,1.39818744]
[1764603809469,0.72601922,2725.3,2724.3,0.46]
[1764603809670,0.72601922,2725.4,2724.3,0.46]
[1764603809968,0.72601922,2725.4,2724.4,0.18581874]
[1764603810171,0.72601922,2725.6,2724.4,0.18581874]
[1764603810357,0.72601922,2725.7,2724.5,0.4663]
[1764603810674,0.72601922,2725.7,2724.7,11.01038646]
[1764603810839,0.72601922,2725.9,2724.7,14.68051528]
[1764603811173,1.39563283,2725.8,2725.5,0.05]
[1764603811359,0.72559411,2725.6,2725.5,0.05]
[1764603811671,1.94563307,2725.7,2725.5,0.05]
[1764603811874,0.91234955,2725.6,2725.5,0.05]
[1764603812095,1.64155257,2725.6,2725.5,0.05]
[1764603812432,0.72920302,2725.6,2725.5,0.05]
[1764603812553,0.91287289,2725.6,2725.5,0.05]
[1764603812747,4.58178982,2725.6,2725.5,0.05]
[1764603812948,4.89261995,2725.6,2725.5,0.05]
[1764603813248,5.61821406,2725.6,2725.5,0.05]
[1764603813444,7.44560108,2725.6,2725.5,0.05]
[1764603813687,5.12371406,2725.6,2725.5,0.05]
[1764603813846,2.67334017,2725.6,2725.5,0.05]
[1764603814247,5.12371406,2725.6,2725.5,0.05]
[1764603814675,7.44560108,2725.6,2725.5,0.05]
[1764603815266,5.61741406,2725.6,2725.5,0.05]
[1764603816164,6.95049926,2725.6,2725.5,0.05]
[1764603816360,2.55598822,2725.6,2725.5,0.05]
[1764603816783,1.94691636,2725.6,2725.5,0.05]
[1764603816982,7.82244942,2725.6,2725.5,0.05]
[1764603817159,5.98133406,2725.6,2725.5,0.05]
[1764603817486,5.98133406,2725.6,2723.6,0.72659411]
[1764603817487,16.98808485,2725.6,2723.6,7.3442222]
[1764603817681,0.91364985,2724.8,2723.6,0.001]
[1764603817882,0.91364985,2724.5,2723.7,0.4663]
[1764603818084,0.91364985,2724.8,2723.8,1.07587856]
[1764603818282,0.91364985,2725.1,2723.9,0.662]
[1764603818484,0.91364985,2725.1,2723.9,0.4663]
[1764603818684,0.91364985,2725.3,2724.0,15.8125878]
[1764603818884,0.91364985,2725.4,2724.1,2.24325878]
[1764603819084,0.91364985,2725.7,2725.4,0.05]
[1764603819285,0.91364985,2725.9,2725.4,0.05]
[1764603819484,5.0,2726.0,2725.5,1.1283]
[1764603819687,5.91364985,2726.0,2725.6,0.662]
[1764603819888,5.0,2726.0,2725.6,1.1283]
[1764603820091,5.0,2726.0,2725.7,0.4663]
[1764603820494,5.0,2726.0,2725.7,4.13496769]
[1764603820694,5.0,2726.0,2725.7,0.4663]
[1764603820896,1.82729971,2725.9,2724.9,0.1952]
[1764603821106,1.82729971,2725.9,2723.4,0.1574]
[1764603821107,0.1857,2725.0,2723.4,0.1574]
[1764603821280,0.91442397,2724.4,2723.6,7.34421819]
[1764603821484,0.91442397,2724.6,2723.7,0.4663]
[1764603821713,0.91442397,2724.8,2723.7,1.48006532]
[1764603822017,0.91442397,2724.8,2723.8,1.91258946]
[1764603822186,1.21923196,2724.9,2723.9,0.4663]
[1764603822187,0.91442397,2724.9,2723.9,0.4663]
[1764603822387,0.91442397,2725.1,2724.0,0.405504]
[1764603822591,5.0,2726.0,2724.4,16.39541456]
[1764603822815,5.0,2726.0,2725.4,0.405504]
[1764603822816,4.22897139,2726.0,2725.4,0.405504]
[1764603823031,0.002,2726.6,2725.6,0.405504]
[1764603823237,0.91442397,2727.8,2726.1,0.405504]
[1764603823377,0.91442397,2728.0,2726.4,11.89549845]
[1764603823739,0.91442397,2728.3,2726.6,0.405504]
[1764603823923,0.91442397,2728.7,2727.0,0.405504]
[1764603824105,0.91442397,2729.0,2727.6,0.405504]
[1764603824285,0.91442397,2729.8,2728.1,1.13109811]
[1764603824615,0.91442397,2729.8,2727.7,0.662]
[1764603824616,0.91442397,2730.5,2728.6,1.13109811]
[1764603824817,0.91442397,2730.7,2728.8,0.405504]
[1764603825113,0.5,2730.0,2728.4,7.33030346]
[1764603825341,0.5,2730.0,2728.5,0.662]
[1764603825696,0.5,2730.0,2728.0,0.72559411]
[1764603825697,0.5,2730.0,2728.6,0.662]
[1764603826026,0.5,2730.0,2727.6,0.32473855]
[1764603826178,0.5,2730.0,2727.2,18.3338222]
[1764603826179,0.5,2730.0,2728.8,0.405504]
[1764603826378,0.5,2730.0,2729.2,0.405504]
[1764603826579,1.57642397,2731.6,2729.2,0.405504]
[1764603826580,0.91442397,2732.0,2729.7,0.405504]
[1764603826781,0.002,2732.7,2730.9,11.48999445]
[1764603826981,0.002,2732.7,2731.1,0.405504]
[1764603827212,0.002,2732.7,2731.5,0.405504]
[1764603827388,0.002,2732.7,2731.9,11.48999445]
[1764603827630,0.002,2732.7,2732.0,0.405504]
[1764603827855,0.002,2732.7,2732.0,0.662]
[1764603828030,0.002,2732.7,2731.8,0.662]
[1764603828231,0.002,2732.7,2731.9,0.662]
[1764603828445,0.002,2732.7,2732.0,0.662]
[1764603828742,0.002,2732.7,2731.2,0.405504]
[1764603828942,0.002,2732.7,2729.8,10.84350079]
[1764603828943,11.48999445,2732.3,2729.8,10.84350079]
[1764603829239,0.36392,2732.5,2729.9,4.31416]
[1764603829438,1.22209411,2732.7,2730.2,11.48999445]
[1764603829439,0.4945,2732.6,2730.2,11.48999445]
[1764603829658,0.91442397,2734.8,2731.3,0.405504]
[1764603829858,0.91442397,2734.9,2734.4,11.48999445]
[1764603830034,0.91442397,2734.9,2731.5,1.86712466]
[1764603830035,0.1857,2735.9,2734.5,0.668]
[1764603830234,0.4945,2735.8,2731.7,0.72559411]
[1764603830434,0.4945,2735.8,2733.1,11.48999445]
[1764603830435,2.635224,2735.7,2733.1,11.48999445]
[1764603830634,11.48999445,2735.1,2733.0,0.669]
[1764603830856,14.62255528,2735.5,2733.0,0.669]
[1764603830857,1.1625,2735.0,2733.0,0.669]
[1764603831156,1.1625,2735.0,2733.0,0.668]
[1764603831355,1.1625,2735.0,2732.3,0.405504]
[1764603831356,0.4945,2734.9,2732.3,0.405504]
[1764603831543,11.48999445,2734.1,2731.1,11.48999445]
[1764603831745,0.668,2734.0,2731.2,1.39359411]
[1764603831947,0.668,2734.0,2731.3,2.68195297]
[1764603832133,0.4945,2733.9,2731.4,0.668]
[1764603832337,0.4945,2733.9,2731.7,11.48999445]
[1764603832532,7.31582412,2733.8,2731.9,7.32091218]
[1764603832733,7.81005652,2733.9,2731.9,3.66045609]
[1764603832927,7.81005652,2733.9,2731.9,7.32091218]
[1764603832928,1.22009411,2733.8,2731.9,7.32091218]
[1764603833122,1.22009411,2733.8,2732.0,0.668]
[1764603833359,1.03993382,2733.7,2732.0,1.21574555]
[1764603834256,20.0,2733.0,2732.0,0.54774555]
[1764603834433,20.0,2733.0,2731.8,4.80955698]
[1764603834434,20.0,2733.0,2732.1,0.667]
[1764603834634,20.0,2733.0,2732.2,7.32010832]
[1764603834957,20.0,2733.0,2732.2,10.98016248]
[1764603835157,20.0,2733.0,2732.3,0.405504]
[1764603835460,20.0,2733.0,2732.5,0.405504]
[1764603835682,20.0,2733.0,2732.5,1.13109811]
[1764603835859,20.0,2733.0,2731.6,0.72559411]
[1764603836162,20.0,2733.0,2731.8,2.405341]
[1764603836369,20.0,2733.0,2732.2,0.405504]
[1764603836529,20.0,2733.0,2732.2,1.26210926]
[1764603836726,20.0,2733.0,2732.3,7.98584042]
[1764603836927,20.0,2733.0,2732.3,11.64576063]
[1764603837128,20.0,2733.0,2732.2,1.26210926]
[1764603837327,20.0,2733.0,2730.9,3.66173398]
[1764603837328,20.0,2733.0,2731.2,0.72559411]
[1764603837558,20.0,2733.0,2731.3,1.22155886]
[1764603837758,0.6802,2732.9,2730.4,11.48999445]
[1764603837960,0.6802,2732.9,2730.5,10.9869426]
[1764603838127,0.4945,2732.8,2730.6,0.665]
[1764603838332,0.4937,2732.8,2730.6,1.39059411]
[1764603838534,0.4937,2732.8,2730.7,1.97022025]
[1764603838858,0.405504,2732.7,2730.7,1.97022025]
[1764603839028,0.72559411,2732.3,2730.4,3.66236171]
[1764603839229,0.405504,2732.5,2729.6,3.66354044]
[1764603839429,0.405504,2732.3,2729.7,0.36635404]
[1764603839656,0.72559411,2731.9,2729.8,0.665]
[1764603839856,0.665,2731.8,2728.9,9.74535238]
[1764603840158,0.665,2731.8,2729.0,2.12353468]
[1764603840159,1.13109811,2731.4,2729.0,2.12353468]
[1764603840358,11.48999445,2731.5,2728.3,3.66528607]
[1764603840359,0.72559411,2730.4,2728.3,3.66528607]
[1764603840661,0.665,2730.8,2728.5,26.15006405]
[1764603840863,0.4627,2731.0,2728.6,3.40710052]
[1764603841038,0.1977,2731.3,2729.6,0.72559411]
[1764603841362,0.1977,2731.3,2729.7,1.070504]
[1764603841528,0.4627,2731.2,2729.8,0.665]
[1764603841728,1.85329411,2731.2,2729.2,0.664]
[1764603841957,0.4627,2731.1,2729.3,0.664]
[1764603842588,0.1977,2731.3,2729.6,0.405504]
[1764603842886,0.4627,2731.7,2728.6,2.68150641]
[1764603842887,0.4627,2731.7,2730.1,0.72559411]
[1764603843049,3.6608581,2731.6,2728.1,3.66547799]
[1764603843237,1.80194992,2731.5,2728.9,0.405504]
[1764603843572,13.75464437,2731.5,2728.9,0.72559411]
[1764603843868,0.72559411,2730.9,2728.9,0.664]
[1764603844056,0.664,2730.8,2728.0,11.48999445]
[1764603844263,1.1267,2730.8,2728.1,0.664]
[1764603844461,6.51273011,2730.4,2727.3,10.99989]
[1764603844653,8.05186979,2729.9,2727.5,7.33272226]
[1764603844854,0.663,2729.8,2727.6,0.73327223]
[1764603845049,1.3234,2729.8,2727.6,1.39627223]
[1764603845371,0.8607,2729.8,2727.8,11.48999445]
[1764603845549,0.4627,2729.7,2727.8,11.48999445]
[1764603845749,0.4627,2729.7,2727.9,1.81299944]
[1764603845953,0.4627,2729.7,2728.0,0.405504]
[1764603846464,0.4627,2729.7,2727.6,1.45886634]
[1764603846465,0.4627,2729.7,2728.1,0.664]
[1764603846640,0.4627,2729.7,2727.6,0.73327223]
[1764603846842,7.78952485,2729.7,2727.7,0.663]
[1764603847049,8.45252485,2729.7,2727.2,9.68291818]
[1764603847250,0.4627,2729.6,2727.3,0.663]
[1764603847465,0.4627,2729.6,2727.7,9.68291818]
[1764603847669,0.4627,2729.6,2727.9,0.405504]
[1764603847869,0.4627,2729.6,2727.8,1.69388593]
[1764603847870,0.4627,2729.6,2728.0,0.663]
[1764603848072,0.4627,2729.6,2728.1,0.663]
[1764603848275,0.4627,2729.6,2727.6,0.405504]
[1764603848453,0.1977,2729.8,2728.5,1.13109811]
[1764603848661,0.663,2730.2,2728.8,0.72559411]
[1764603848861,0.4627,2730.6,2728.8,0.72559411]
[1764603849389,0.4627,2730.6,2728.9,0.663]
[1764603849684,0.4627,2730.9,2729.0,0.405504]
[1764603849894,0.4627,2730.8,2729.0,0.405504]
[1764603850089,0.4627,2730.8,2728.8,0.72559411]
[1764603850291,0.4627,2730.8,2728.7,20.67716452]
[1764603850292,0.4627,2730.8,2729.0,0.72559411]
[1764603850592,0.662,2730.7,2729.0,0.72559411]
[1764603850776,9.68291818,2730.3,2727.9,0.662]
[1764603850979,0.4627,2730.2,2728.0,0.662]
[1764603851179,0.4627,2730.2,2728.1,0.662]
[1764603851858,0.4627,2730.2,2728.2,10.08842218]
[1764603852060,0.4627,2730.2,2728.4,0.405504]
[1764603852291,0.4627,2730.2,2728.5,0.662]
[1764603852493,0.4627,2730.2,2728.2,0.405504]
[1764603852694,0.4627,2730.2,2728.0,0.406504]
[1764603852695,13.34591561,2730.1,2728.0,0.001]
[1764603852992,3.66290268,2730.1,2728.1,0.662]
[1764603853292,9.68291818,2729.2,2728.0,0.001]
[1764603853491,9.88061818,2728.2,2725.6,7.33783386]
[1764603853817,0.661,2728.1,2725.7,0.661]
[1764603853980,1.1237,2728.1,2725.7,0.661]
[1764603854172,0.4627,2728.0,2725.8,2.19484677]
[1764603854559,0.1977,2728.2,2726.5,9.68291818]
[1764603854789,0.6604,2728.2,2726.7,0.72559411]
[1764603854978,0.6604,2728.2,2726.9,1.13109811]
[1764603855176,0.1977,2728.6,2726.8,1.60568705]
[1764603855387,0.1977,2728.6,2726.9,0.661]
[1764603855598,0.4627,2728.5,2727.0,0.405504]
[1764603855761,0.4627,2729.2,2727.6,0.405504]
[1764603855963,0.4627,2729.2,2727.8,0.405504]
[1764603856580,0.4627,2729.2,2727.9,0.661]
[1764603856783,0.4627,2729.2,2728.2,0.405504]
[1764603857296,0.1977,2730.0,2728.2,1.13109811]
[1764603857493,2.02654795,2731.4,2728.9,0.405504]
[1764603857494,0.4627,2730.7,2728.9,0.405504]
[1764603857726,0.4627,2730.7,2729.2,9.68291818]
[1764603857930,0.4627,2730.7,2729.3,1.13109811]
[1764603858234,0.1977,2731.4,2729.3,1.13109811]
[1764603858392,0.4627,2730.7,2729.4,1.08140163]
[1764603858729,0.4627,2730.7,2729.6,0.405504]
[1764603858898,0.4627,2730.7,2729.5,7.32734932]
[1764603859094,0.1977,2731.4,2729.5,7.32734932]
[1764603859398,0.4627,2731.0,2729.6,0.405504]
[1764603859606,0.4627,2731.0,2729.5,0.405504]
[1764603859820,0.4627,2731.0,2729.7,0.405504]
[1764603860499,0.4627,2731.6,2730.1,1.13109811]
[1764603860699,0.1977,2732.5,2730.8,0.405504]
[1764603860901,0.002,2732.8,2731.1,1.13109811]
[1764603861138,0.4627,2732.7,2731.3,0.405504]
[1764603861291,0.4627,2732.7,2730.8,0.0018]
[1764603861292,0.4619,2732.7,2730.8,0.405504]
[1764603861627,0.002,2732.8,2731.1,0.405504]
[1764603861797,0.002,2732.8,2731.3,0.405504]
[1764603861991,0.002,2732.8,2731.5,0.405504]
[1764603862204,0.002,2732.8,2730.7,14.64825868]
[1764603862404,0.002,2732.8,2730.8,1.79009811]
[1764603862405,0.36592,2732.8,2730.8,1.79009811]
[1764603862699,9.68291818,2732.5,2729.8,3.66583192]
[1764603862904,9.68291818,2732.5,2729.7,10.99021869]
[1764603862905,0.36392,2731.8,2729.7,10.99021869]
[1764603863222,0.659,2731.7,2729.8,1.87199085]